fUSD/lending_fUSD_20251112
["ID","MTS","AMOUNT","RATE_DAILY","PERIOD"]
[393769904,1762973442737,-371.53447534,0.00040173,5]
[393769907,1762973442749,-2500.0,0.00040174,14]
[393769910,1762973442759,-2500.0,0.00040183,14]
[393769912,1762973442768,-7746.04290824,0.00040186,15]
[393769914,1762973442778,-2500.0,0.00040191,14]
[393769915,1762973442789,-2500.0,0.000402,14]
[393769916,1762973442799,-9743.15746121,0.00040208,4]
[393769917,1762973442808,-2500.0,0.00040209,14]
[393769918,1762973442818,-2500.0,0.00040218,14]
[393769919,1762973442829,-2500.0,0.00040227,14]
[393769920,1762973442842,-500.0,0.00040228,30]
[393769921,1762973442852,-68202.1022285,0.00040229,4]
[393769922,1762973442862,-448.84286,0.0004023,3]
[393769923,1762973442872,-7746.04290824,0.00040234,15]
[393769924,1762973442881,-2500.0,0.00040235,14]
[393769925,1762973442891,-154.94105912,0.00040236,14]
[393769926,1762973442910,-207.61757181,0.00040238,120]
[393769927,1762973442920,-140102.90503296,0.00040239,30]
[393769928,1762973442930,-182.89087816,0.00040243,2]
[393769929,1762973442940,-2500.0,0.00040244,14]
[393769930,1762973442949,-500.0,0.00040249,30]
[393769931,1762973442959,-2500.0,0.00040253,14]
[393769932,1762973442968,-199.0,0.00040253,11]
[393769933,1762973442978,-97431.5746121,0.00040263,4]
[393769934,1762973442987,-500.0,0.00040266,30]
[393769935,1762973442997,-1000.0,0.00040273,5]
[393769936,1762973443007,-254.00577411,0.00040273,20]
[393769937,1762973443016,-1000.0,0.00040273,2]
[393769938,1762973443026,-1000.0,0.00040273,2]
[393769939,1762973443035,-1000.0,0.00040273,2]
[393769940,1762973443048,-500.0,0.00040273,20]
[393769941,1762973443060,-432.40917561,0.00040273,20]
[393769942,1762973443069,-500.0,0.00040273,20]
[393769943,1762973443079,-500.0,0.00040273,20]
[393769944,1762973443088,-500.0,0.00040273,20]
[393769945,1762973443097,-200.0794546,0.00040273,20]
[393769946,1762973443107,-1678.69,0.00040273,20]
[393769947,1762973443116,-562.13278875,0.00040273,20]
[393769948,1762973443126,-1247.48,0.00040273,20]
[393769949,1762973443136,-500.0,0.00040273,20]
[393769950,1762973443146,-500.0,0.00040273,20]
[393769968,1762973443353,-500.0,0.00040273,20]
[393769970,1762973443363,-500.0,0.00040273,20]
[393769972,1762973443373,-500.0,0.00040273,20]
[393769974,1762973443385,-500.0,0.00040273,20]
[393769976,1762973443394,-500.0,0.00040273,20]
[393769978,1762973443404,-500.0,0.00040273,20]
[393769980,1762973443413,-500.0,0.00040273,20]
[393769982,1762973443423,-297.22511826,0.00040273,20]
[393769984,1762973443432,-500.0,0.00040273,20]
[393769986,1762973443441,-500.0,0.00040273,20]
[393769988,1762973443451,-500.0,0.00040273,20]
[393769990,1762973443460,-500.0,0.00040273,20]
[393769992,1762973443469,-500.0,0.00040273,20]
[393769993,1762973443478,-500.0,0.00040273,20]
[393769995,1762973443488,-500.0,0.00040273,20]
[393769998,1762973443497,-500.0,0.00040273,20]
[393770000,1762973443507,-525.77353451,0.00040273,20]
[393770002,1762973443516,-595.02417111,0.00040273,20]
[393770004,1762973443525,-500.0,0.00040273,20]
[393770006,1762973443535,-627.92253748,0.00040273,20]
[393770008,1762973443544,-500.0,0.00040273,20]
[393770010,1762973443553,-500.0,0.00040273,20]
[393770012,1762973443564,-218.69351316,0.00040273,20]
[393770014,1762973443573,-500.0,0.00040273,20]
[393770016,1762973443582,-570.13294595,0.00040273,20]
[393770018,1762973443591,-500.0,0.00040273,20]
[393770020,1762973443600,-196.2467722,0.00040273,20]
[393770022,1762973443609,-347.41095185,0.00040273,20]
[393770024,1762973443618,-500.0,0.00040273,20]
[393770026,1762973443627,-487.62945193,0.00040273,20]
[393770028,1762973443636,-152.56197667,0.00040273,20]
[393770030,1762973443646,-528.25593589,0.00040273,20]
[393770032,1762973443655,-500.0,0.00040273,120]
[393770034,1762973443664,-500.0,0.00040273,120]
[393770036,1762973443673,-500.0,0.00040273,120]
[393770037,1762973443682,-500.0,0.00040273,120]
[393770040,1762973443692,-500.0,0.00040273,120]
[393770042,1762973443702,-438.96938179,0.00040273,120]
[393770044,1762973443711,-500.0,0.00040273,20]
[393770046,1762973443720,-500.0,0.00040273,20]
[393770048,1762973443730,-500.0,0.00040273,20]
[393770050,1762973443740,-406.87450242,0.00040273,20]
[393770051,1762973443754,-500.0,0.00040273,20]
[393770053,1762973443763,-500.0,0.00040273,20]
[393770055,1762973443772,-452.34027239,0.00040273,20]
[393770057,1762973443783,-500.0,0.00040273,20]
[393770059,1762973443792,-268.23783738,0.00040273,20]
[393770061,1762973443803,-500.0,0.00040273,20]
[393770062,1762973443815,-607.19056721,0.00040273,20]
[393770063,1762973443826,-523.5195773,0.00040273,20]
[393770064,1762973443836,-500.0,0.00040273,20]
[393770065,1762973443846,-500.0,0.00040273,20]
[393770066,1762973443856,-500.0,0.00040273,20]
[393770067,1762973443866,-500.0,0.00040273,20]
[393770068,1762973443876,-500.0,0.00040273,20]
[393770069,1762973443886,-500.0,0.00040273,20]
[393770070,1762973443896,-500.0,0.00040273,20]
[393770071,1762973443906,-500.0,0.00040273,20]
[393770072,1762973443915,-500.0,0.00040273,20]
[393770073,1762973443925,-500.0,0.00040273,20]
[393770074,1762973443935,-373.30798458,0.00040273,20]
[393770075,1762973443944,-500.0,0.00040273,20]
[393770076,1762973443954,-568.37918798,0.00040273,20]
[393770077,1762973443963,-307.46797566,0.00040273,20]
[393770078,1762973443973,-500.0,0.00040273,20]
[393770079,1762973443982,-396.06211683,0.00040273,20]
[393770080,1762973443991,-500.0,0.00040273,20]
[393770081,1762973444001,-500.0,0.00040273,7]
[393770082,1762973444010,-500.0,0.00040273,20]
[393770083,1762973444020,-500.0,0.00040273,20]
[393770084,1762973444029,-242.21571684,0.00040273,20]
[393770085,1762973444038,-500.0,0.00040273,20]
[393770086,1762973444048,-500.0,0.00040273,20]
[393770087,1762973444058,-500.0,0.00040273,20]
[393770088,1762973444069,-500.0,0.00040273,20]
[393770089,1762973444078,-500.0,0.00040273,20]
[393770090,1762973444088,-422.01624957,0.00040273,20]
[393770091,1762973444097,-500.0,0.00040273,20]
[393770092,1762973444108,-500.0,0.00040273,20]
[393770093,1762973444118,-500.0,0.00040273,20]
[393770094,1762973444128,-500.0,0.00040273,20]
[393770095,1762973444137,-500.0,0.00040273,20]
[393770096,1762973444147,-500.0,0.00040273,20]
[393770097,1762973444156,-500.0,0.00040273,20]
[393770098,1762973444165,-500.0,0.00040273,20]
[393770099,1762973444174,-500.0,0.00040273,20]
[393770100,1762973444184,-500.0,0.00040273,20]
[393770101,1762973444193,-500.0,0.00040273,20]
[393770102,1762973444202,-500.0,0.00040273,20]
[393770103,1762973444211,-500.0,0.00040273,20]
[393770104,1762973444221,-500.0,0.00040273,20]
[393770105,1762973444231,-500.0,0.00040273,20]
[393770106,1762973444240,-500.0,0.00040273,20]
[393770107,1762973444249,-500.0,0.00040273,20]
[393770108,1762973444258,-500.0,0.00040273,20]
[393770109,1762973444267,-500.0,0.00040273,20]
[393770110,1762973444277,-500.0,0.00040273,20]
[393770111,1762973444286,-537.54158613,0.00040273,20]
[393770112,1762973444296,-243.11842268,0.00040273,20]
[393770113,1762973444305,-500.0,0.00040273,20]
[393770114,1762973444315,-500.0,0.00040273,20]
[393770115,1762973444325,-500.0,0.00040273,20]
[393770116,1762973444334,-500.0,0.00040273,20]
[393770117,1762973444343,-500.0,0.00040273,20]
[393770118,1762973444352,-490.57257766,0.00040273,20]
[393770119,1762973444361,-500.0,0.00040273,20]
[393770120,1762973444370,-500.0,0.00040273,20]
[393770121,1762973444380,-500.0,0.00040273,20]
[393770122,1762973444390,-500.0,0.00040273,20]
[393770123,1762973444404,-500.0,0.00040273,20]
[393770124,1762973444415,-500.0,0.00040273,20]
[393770125,1762973444424,-500.0,0.00040273,20]
[393770126,1762973444433,-191.34697931,0.00040273,20]
[393770127,1762973444442,-500.0,0.00040273,20]
[393770128,1762973444452,-500.0,0.00040273,20]
[393770129,1762973444461,-500.0,0.00040273,20]
[393770130,1762973444470,-383.78323472,0.00040273,20]
[393770131,1762973444480,-500.0,0.00040273,20]
[393770132,1762973444490,-500.0,0.00040273,20]
[393770133,1762973444500,-500.0,0.00040273,20]
[393770134,1762973444509,-462.33214186,0.00040273,20]
[393770135,1762973444519,-500.0,0.00040273,20]
[393770136,1762973444528,-500.0,0.00040273,20]
[393770137,1762973444537,-630.87859523,0.00040273,20]
[393770138,1762973444549,-500.0,0.00040273,20]
[393770139,1762973444558,-239.12426438,0.00040273,20]
[393770140,1762973444569,-500.0,0.00040273,20]
[393770141,1762973444578,-500.0,0.00040273,20]
[393770142,1762973444587,-500.0,0.00040273,20]
[393770143,1762973444596,-500.0,0.00040273,20]
[393770144,1762973444606,-500.0,0.00040273,20]
[393770145,1762973444615,-500.0,0.00040273,20]
[393770146,1762973444624,-500.0,0.00040273,20]
[393770147,1762973444633,-601.28641066,0.00040273,20]
[393770148,1762973444642,-500.0,0.00040273,20]
[393770149,1762973444652,-500.0,0.00040273,20]
[393770150,1762973444662,-500.0,0.00040273,20]
[393770151,1762973444671,-500.0,0.00040273,20]
[393770152,1762973444680,-500.0,0.00040273,20]
[393770153,1762973444689,-500.0,0.00040273,20]
[393770154,1762973444698,-500.0,0.00040273,20]
[393770155,1762973444712,-568.18331011,0.00040273,20]
[393770156,1762973444721,-500.0,0.00040273,20]
[393770157,1762973444731,-500.0,0.00040273,20]
[393770158,1762973444741,-500.0,0.00040273,20]
[393770159,1762973444754,-500.0,0.00040273,20]
[393770160,1762973444765,-500.0,0.00040273,20]
[393770161,1762973444775,-500.0,0.00040273,20]
[393770162,1762973444786,-500.0,0.00040273,20]
[393770163,1762973444796,-500.0,0.00040273,20]
[393770164,1762973444808,-500.0,0.00040273,20]
[393770165,1762973444823,-500.0,0.00040273,20]
[393770166,1762973444835,-500.0,0.00040273,20]
[393770167,1762973444845,-500.0,0.00040273,20]
[393770168,1762973444855,-500.0,0.00040273,20]
[393770169,1762973444865,-633.44725734,0.00040273,20]
[393770170,1762973444875,-500.0,0.00040273,20]
[393770171,1762973444885,-500.0,0.00040273,20]
[393770172,1762973444895,-500.0,0.00040273,20]
[393770173,1762973444905,-500.0,0.00040273,20]
[393770174,1762973444918,-500.0,0.00040273,20]
[393770175,1762973444927,-500.0,0.00040273,20]
[393770176,1762973444936,-500.0,0.00040273,20]
[393770177,1762973444947,-611.43129878,0.00040273,20]
[393770178,1762973444957,-212.22256467,0.00040273,20]
[393770179,1762973444966,-500.0,0.00040273,2]
[393770180,1762973444976,-477.01705635,0.00040273,20]
[393770181,1762973444985,-500.0,0.00040273,20]
[393770182,1762973444995,-500.0,0.00040273,20]
[393770183,1762973445005,-500.0,0.00040273,20]
[393770184,1762973445015,-500.0,0.00040273,20]
[393770185,1762973445025,-500.0,0.00040273,20]
[393770186,1762973445034,-500.0,0.00040273,20]
[393770187,1762973445044,-500.0,0.00040273,20]
[393770188,1762973445055,-500.0,0.00040273,20]
[393770189,1762973445068,-537.75445747,0.00040273,20]
[393770190,1762973445078,-500.0,0.00040273,2]
[393770191,1762973445088,-500.0,0.00040273,2]
[393770192,1762973445097,-500.0,0.00040273,20]
[393770193,1762973445108,-500.0,0.00040273,2]
[393770194,1762973445118,-500.0,0.00040273,2]
[393770195,1762973445128,-500.0,0.00040273,2]
[393770196,1762973445138,-500.0,0.00040273,2]
[393770197,1762973445147,-500.0,0.00040273,2]
[393770198,1762973445156,-500.0,0.00040273,2]
[393770199,1762973445166,-500.0,0.00040273,20]
[393770200,1762973445175,-500.0,0.00040273,2]
[393770201,1762973445184,-500.0,0.00040273,2]
[393770202,1762973445195,-500.0,0.00040273,20]
[393770203,1762973445205,-500.0,0.00040273,2]
[393770204,1762973445214,-500.0,0.00040273,2]
[393770205,1762973445224,-500.0,0.00040273,2]
[393770206,1762973445233,-500.0,0.00040273,2]
[393770207,1762973445242,-500.0,0.00040273,2]
[393770208,1762973445251,-500.0,0.00040273,20]
[393770209,1762973445261,-500.0,0.00040273,2]
[393770210,1762973445271,-500.0,0.00040273,20]
[393770211,1762973445279,-500.0,0.00040273,2]
[393770212,1762973445289,-500.0,0.00040273,20]
[393770213,1762973445298,-500.0,0.00040273,2]
[393770214,1762973445308,-534.80852296,0.00040273,20]
[393770215,1762973445320,-428.98876825,0.00040273,20]
[393770216,1762973445329,-500.0,0.00040273,20]
[393770217,1762973445339,-500.0,0.00040273,20]
[393770218,1762973445348,-500.0,0.00040273,10]
[393770219,1762973445358,-500.0,0.00040273,20]
[393770220,1762973445367,-500.0,0.00040273,20]
[393770221,1762973445377,-500.0,0.00040273,20]
[393770222,1762973445386,-500.0,0.00040273,20]
[393770223,1762973445395,-500.0,0.00040273,20]
[393770224,1762973445405,-633.23392953,0.00040273,20]
[393770225,1762973445415,-500.0,0.00040273,20]
[393770226,1762973445424,-500.0,0.00040273,20]
[393770227,1762973445433,-500.0,0.00040273,20]
[393770228,1762973445443,-500.0,0.00040273,20]
[393770229,1762973445452,-500.0,0.00040273,20]
[393770230,1762973445462,-500.0,0.00040273,20]
[393770231,1762973445471,-500.0,0.00040273,20]
[393770232,1762973445481,-500.0,0.00040273,20]
[393770233,1762973445491,-500.0,0.00040273,20]
[393770234,1762973445501,-500.0,0.00040273,20]
[393770235,1762973445510,-500.0,0.00040273,20]
[393770236,1762973445519,-245.56221142,0.00040273,20]
[393770237,1762973445528,-500.0,0.00040273,20]
[393770238,1762973445537,-486.74954768,0.00040273,20]
[393770239,1762973445547,-500.0,0.00040273,20]
[393770240,1762973445556,-520.63417127,0.00040273,20]
[393770241,1762973445567,-500.0,0.00040273,20]
[393770242,1762973445577,-500.0,0.00040273,15]
[393770243,1762973445586,-500.0,0.00040273,15]
[393770244,1762973445596,-430.5953965,0.00040273,20]
[393770245,1762973445606,-500.0,0.00040273,15]
[393770246,1762973445616,-500.0,0.00040273,15]
[393770247,1762973445626,-290.3762817,0.00040273,15]
[393770248,1762973445636,-500.0,0.00040273,20]
[393770249,1762973445646,-500.0,0.00040273,20]
[393770250,1762973445655,-500.0,0.00040273,20]
[393770251,1762973445665,-500.0,0.00040273,20]
[393770252,1762973445673,-500.0,0.00040273,20]
[393770253,1762973445683,-500.0,0.00040273,20]
[393770254,1762973445692,-500.0,0.00040273,20]
[393770255,1762973445701,-500.0,0.00040273,20]
[393770256,1762973445711,-500.0,0.00040273,20]
[393770257,1762973445722,-500.0,0.00040273,20]
[393770258,1762973445732,-617.44257598,0.00040273,20]
[393770259,1762973445746,-500.0,0.00040273,20]
[393770260,1762973445757,-500.0,0.00040273,20]
[393770261,1762973445768,-315.73930794,0.00040273,20]
[393770262,1762973445777,-500.0,0.00040273,20]
[393770263,1762973445789,-500.0,0.00040273,20]
[393770264,1762973445799,-500.0,0.00040273,20]
[393770265,1762973445809,-500.0,0.00040273,20]
[393770266,1762973445825,-500.0,0.00040273,20]
[393770267,1762973445835,-500.0,0.00040273,20]
[393770268,1762973445845,-500.0,0.00040273,20]
[393770269,1762973445855,-500.0,0.00040273,20]
[393770270,1762973445864,-513.40493381,0.00040273,20]
[393770271,1762973445873,-560.76842197,0.00040273,20]
[393770272,1762973445883,-185.51459932,0.00040273,20]
[393770273,1762973445893,-500.0,0.00040273,20]
[393770274,1762973445903,-500.0,0.00040273,20]
[393770275,1762973445912,-276.54807613,0.00040273,20]
[393770276,1762973445922,-559.49523425,0.00040273,20]
[393770277,1762973445932,-549.5461605,0.00040273,20]
[393770278,1762973445941,-500.0,0.00040273,20]
[393770279,1762973445951,-300.0,0.00040273,20]
[393770280,1762973445961,-500.0,0.00040273,20]
[393770281,1762973445972,-500.0,0.00040273,20]
[393770282,1762973445982,-500.0,0.00040273,20]
[393770283,1762973445992,-500.0,0.00040273,20]
[393770284,1762973446001,-500.0,0.00040273,20]
[393770285,1762973446010,-500.0,0.00040273,20]
[393770286,1762973446020,-500.0,0.00040273,20]
[393770287,1762973446030,-195.47214038,0.00040273,20]
[393770288,1762973446039,-500.0,0.00040273,20]
[393770289,1762973446049,-500.0,0.00040273,20]
[393770290,1762973446061,-7746.04290824,0.00040282,15]
[393770291,1762973446071,-182.89087816,0.00040312,2]
[393770292,1762973446081,-390.56660694,0.00040323,15]
[393770293,1762973446091,-152.39025524,0.0004033,120]
[393770294,1762973446101,-152.39,0.0004033,120]
[393770295,1762973446111,-177.78863112,0.0004033,120]
[393770296,1762973446120,-177.78863112,0.0004033,120]
[393770297,1762973446131,-177.78863112,0.0004033,120]
[393770298,1762973446140,-177.78,0.0004033,120]
[393770299,1762973446149,-158.28428614,0.0004033,120]
[393770300,1762973446158,-158.28428614,0.0004033,120]
[393770301,1762973446168,-158.28428614,0.0004033,120]
[393770302,1762973446177,-158.28428614,0.0004033,120]
[393770303,1762973446186,-158.28428614,0.0004033,120]
[393770304,1762973446195,-158.28428614,0.0004033,120]
[393770305,1762973446205,-158.28428614,0.0004033,120]
[393770306,1762973446214,-158.28428614,0.0004033,120]
[393770307,1762973446224,-158.28428614,0.0004033,120]
[393770308,1762973446233,-158.28428614,0.0004033,120]
[393770309,1762973446242,-158.28428614,0.0004033,120]
[393770310,1762973446252,-158.28428614,0.0004033,120]
[393770311,1762973446262,-158.28428614,0.0004033,120]
[393770312,1762973446271,-158.28428614,0.0004033,120]
[393770313,1762973446280,-158.28428614,0.0004033,120]
[393770314,1762973446289,-158.28,0.0004033,120]
[393770315,1762973446298,-295.46400079,0.0004033,120]
[393770316,1762973446308,-295.46400079,0.0004033,120]
[393770317,1762973446319,-295.46400079,0.0004033,120]
[393770318,1762973446328,-295.46400079,0.0004033,120]
[393770319,1762973446337,-295.46400079,0.0004033,120]
[393770320,1762973446346,-295.46400079,0.0004033,120]
[393770321,1762973446356,-295.46400079,0.0004033,120]
[393770322,1762973446365,-295.46400079,0.0004033,120]
[393770323,1762973446375,-295.46400079,0.0004033,120]
[393770324,1762973446385,-295.46400079,0.0004033,120]
[393770325,1762973446394,-295.46400079,0.0004033,120]
[393770326,1762973446404,-295.46400079,0.0004033,120]
[393770327,1762973446414,-295.46400079,0.0004033,120]
[393770328,1762973446423,-295.46400079,0.0004033,120]
[393770329,1762973446433,-295.46400079,0.0004033,120]
[393770330,1762973446442,-295.46400079,0.0004033,120]
[393770331,1762973446452,-295.46400079,0.0004033,120]
[393770332,1762973446461,-295.46400079,0.0004033,120]
[393770333,1762973446470,-295.46400079,0.0004033,120]
[393770334,1762973446479,-295.46,0.0004033,120]
[393770335,1762973446488,-152.09451108,0.0004033,28]
[393770336,1762973446497,-8245.6580717,0.0004033,2]
[393770337,1762973446507,-393.26006292,0.0004033,8]
[393770338,1762973446639,-7746.04290824,0.0004033,15]
[393770339,1762973446649,-968.78667641,0.0004033,2]
[393770340,1762973446658,-58251.00357044,0.0004033,15]
[393770341,1762973446667,-833.13951704,0.0004033,2]
[393770342,1762973446676,-2240.0,0.00040341,5]
[393770343,1762973446685,-150.0,0.00040373,5]
[393770345,1762973446695,-5800.0,0.00040384,14]
[393770347,1762973446704,-300.0,0.00040388,10]
[393770349,1762973446713,-300.0,0.00040388,10]
[393770350,1762973446722,-151.0,0.00040389,120]
[393770351,1762973446731,-242.208904,0.00040389,120]
[393770352,1762973446743,-153.794407,0.00040389,120]
[393770353,1762973446753,-151.0,0.00040389,120]
[393770354,1762973446762,-151.0,0.00040389,120]
[393770355,1762973446771,-151.0,0.00040389,120]
[393770356,1762973446783,-151.0,0.00040389,120]
[393770357,1762973446792,-151.0,0.00040389,120]
[393770358,1762973446801,-251.120984,0.00040389,120]
[393770359,1762973446812,-151.647388,0.00040389,120]
[393770360,1762973446822,-151.0,0.00040389,120]
[393770361,1762973446831,-151.0,0.00040389,21]
[393770362,1762973446841,-151.0,0.00040389,21]
[393770363,1762973446850,-151.0,0.00040389,21]
[393770364,1762973446859,-151.0,0.00040389,21]
[393770365,1762973446868,-151.0,0.00040389,21]
[393770366,1762973446877,-151.0,0.00040389,21]
[393770367,1762973446886,-151.0,0.00040389,21]
[393770368,1762973446896,-230.34452,0.00040389,21]
[393770369,1762973446905,-151.0,0.00040389,120]
[393770370,1762973446915,-173.241516,0.00040389,120]
[393770371,1762973446924,-151.0,0.00040389,120]
[393770372,1762973446934,-5800.0,0.00040392,14]
[393770373,1762973446943,-5000.0,0.000404,120]
[393770374,1762973446953,-1626.0,0.000404,7]
[393770375,1762973446962,-5800.0,0.00040401,14]
[393770376,1762973446971,-5800.0,0.0004041,14]
[393770377,1762973446981,-500.0,0.0004041,20]
[393770378,1762973446990,-500.0,0.0004041,20]
[393770379,1762973447000,-500.0,0.0004041,20]
[393770380,1762973447009,-1678.69,0.0004041,20]
[393770381,1762973447019,-1247.48,0.0004041,20]
[393770382,1762973447027,-300.0,0.00040411,10]
[393770383,1762973447037,-300.0,0.00040411,10]
[393770384,1762973447046,-648.0,0.00040411,30]
[393770385,1762973447057,-500.0,0.00040411,20]
[393770386,1762973447067,-500.0,0.00040411,20]
[393770387,1762973447076,-500.0,0.00040411,20]
[393770388,1762973447086,-500.0,0.00040411,20]
[393770389,1762973447095,-500.0,0.00040411,20]
[393770390,1762973447104,-500.0,0.00040411,20]
[393770391,1762973447114,-500.0,0.00040411,20]
[393770392,1762973447123,-500.0,0.00040411,20]
[393770393,1762973447132,-500.0,0.00040411,20]
[393770394,1762973447142,-500.0,0.00040411,20]
[393770395,1762973447151,-500.0,0.00040411,20]
[393770396,1762973447161,-500.0,0.00040411,20]
[393770397,1762973447170,-500.0,0.00040411,20]
[393770398,1762973447179,-500.0,0.00040411,20]
[393770399,1762973447189,-500.0,0.00040411,20]
[393770400,1762973447199,-500.0,0.00040411,20]
[393770401,1762973447208,-500.0,0.00040411,20]
[393770402,1762973447217,-500.0,0.00040411,20]
[393770403,1762973447227,-544.04029763,0.00040411,20]
[393770404,1762973447236,-500.0,0.00040411,20]
[393770405,1762973447246,-500.0,0.00040411,20]
[393770406,1762973447255,-500.0,0.00040411,20]
[393770407,1762973447265,-500.0,0.00040411,20]
[393770408,1762973447274,-500.0,0.00040411,20]
[393770409,1762973447284,-500.0,0.00040411,20]
[393770410,1762973447293,-500.0,0.00040411,20]
[393770411,1762973447302,-500.0,0.00040411,20]
[393770412,1762973447313,-500.0,0.00040411,20]
[393770413,1762973447323,-500.0,0.00040411,20]
[393770414,1762973447332,-1678.69,0.00040411,20]
[393770415,1762973447343,-1678.69,0.00040411,20]
[393770416,1762973447353,-1678.69,0.00040411,20]
[393770417,1762973447364,-1678.69,0.00040411,20]
[393770418,1762973447375,-1678.69,0.00040411,20]
[393770419,1762973447385,-1678.69,0.00040411,20]
[393770420,1762973447394,-1678.69,0.00040411,20]
[393770421,1762973447404,-1678.69,0.00040411,20]
[393770422,1762973447414,-1678.69,0.00040411,20]
[393770423,1762973447423,-1678.69,0.00040411,20]
[393770424,1762973447433,-1678.69,0.00040411,20]
[393770425,1762973447442,-1678.69,0.00040411,20]
[393770426,1762973447452,-1678.69,0.00040411,20]
[393770427,1762973447461,-1678.69,0.00040411,20]
[393770428,1762973447470,-1678.69,0.00040411,20]
[393770429,1762973447479,-1678.69,0.00040411,20]
[393770430,1762973447488,-1678.69,0.00040411,20]
[393770431,1762973447497,-1678.69,0.00040411,20]
[393770432,1762973447506,-1678.69,0.00040411,20]
[393770433,1762973447515,-1678.69,0.00040411,20]
[393770434,1762973447525,-1678.69,0.00040411,20]
[393770435,1762973447534,-1678.84,0.00040411,20]
[393770436,1762973447543,-1247.48,0.00040411,20]
[393770437,1762973447552,-1247.48,0.00040411,20]
[393770438,1762973447563,-1247.48,0.00040411,20]
[393770439,1762973447572,-1247.48,0.00040411,20]
[393770440,1762973447581,-1247.48,0.00040411,20]
[393770441,1762973447591,-1247.48,0.00040411,20]
[393770442,1762973447599,-1247.48,0.00040411,20]
[393770443,1762973447609,-1247.48,0.00040411,20]
[393770444,1762973447617,-1247.48,0.00040411,20]
[393770445,1762973447627,-1247.48,0.00040411,20]
[393770446,1762973447636,-1247.48,0.00040411,20]
[393770447,1762973447645,-1247.48,0.00040411,20]
[393770448,1762973447654,-1247.48,0.00040411,20]
[393770449,1762973447663,-1247.48,0.00040411,20]
[393770450,1762973447672,-1247.48,0.00040411,20]
[393770451,1762973447681,-1247.48,0.00040411,20]
[393770452,1762973447691,-1247.48,0.00040411,20]
[393770453,1762973447700,-1247.48,0.00040411,20]
[393770454,1762973447709,-1247.48,0.00040411,20]
[393770455,1762973447718,-1247.48,0.00040411,20]
[393770456,1762973447728,-1247.48,0.00040411,20]
[393770457,1762973447738,-1247.65872217,0.00040411,20]
[393770458,1762973447750,-140102.90503296,0.00040412,30]
[393770459,1762973447761,-140102.90503296,0.00040412,30]
[393770460,1762973447770,-140102.90503296,0.00040412,30]
[393770461,1762973447780,-140102.90503296,0.00040412,30]
[393770462,1762973447789,-367.40927527,0.00040412,2]
[393770463,1762973447799,-151.0,0.00040412,120]
[393770464,1762973447808,-151.0,0.00040412,120]
[393770465,1762973447821,-151.0,0.00040412,120]
[393770466,1762973447832,-5800.0,0.00040418,14]
[393770467,1762973447841,-500.0,0.00040418,20]
[393770468,1762973447850,-3427.0,0.00040419,2]
[393770469,1762973447859,-205.402,0.00040419,2]
[393770470,1762973447869,-608.0,0.00040419,2]
[393770471,1762973447878,-821.0,0.00040419,2]
[393770472,1762973447887,-1597.0,0.00040419,2]
[393770473,1762973447896,-813.0,0.00040419,2]
[393770474,1762973447906,-1274.0,0.00040419,2]
[393770475,1762973447915,-2143.0,0.00040419,2]